Cogmind - Beta 14 @@@ ROGUE MODE // 2024.09.20 @ 10:06:37 Player: Bunch Result: Destroyed self via exploding Fusion Modulator Performance ------------- Evolutions (2) 1000 Regions Visited (4) 800 Robots Destroyed (54) 270 Value Destroyed (1911) 1911 Prototype IDs (3) 60 Alien Tech Used (0) 0 Bonus (11) 11 TOTAL SCORE: 4052 Bonus ------- High Alert Combat Kills 11 Cogmind --------- Core Integrity 0/550 Matter 221/300 Energy 100/100 System Corruption 0% Temperature Cool (12) Movement Walking (190) Ox1 Location -8/Materials Parts ------- > --- POWER (2) -------- (None) > --- PROPULSION (4) --- Aluminum Leg Aluminum Leg Aluminum Leg Improved Aluminum Leg > --- UTILITY (3) ------ High-capacity Storage Unit System Shield > --- WEAPON (2) ------- Flak Cannon > --- INVENTORY (20) --- Improved Heat Sink Medium Storage Unit Seismic Detector Melee Analysis Suite Hardened Heavy Armor Plating EM Pulse Gun Light Assault Rifle Flak Cannon Peak State ------------ > --- POWER ------------ Heavy Ion Engine Reinforced Deuterium Engine > --- PROPULSION ------- Aluminum Leg Aluminum Leg Aluminum Leg Carbon-fiber Leg > --- UTILITY ---------- Medium Storage Unit Experimental Sensor Array > --- WEAPON ----------- Heavy Assault Rifle Shotgun > --- INVENTORY -------- Heat Sink Seismic Detector Melee Analysis Suite Hardened Heavy Armor Plating EM Pulse Gun Light Assault Rifle Improved Assault Rifle Flak Cannon [Rating: 29] Favorites ----------- Power Light Ion Engine Engine Light Ion Engine Power Core Light Nuclear Core Propulsion Light Treads Treads Light Treads Leg Aluminum Leg Utility Medium Storage Unit Device Improved Terrain Scanner Storage Medium Storage Unit Hackware System Shield Weapon Flak Cannon Energy Gun EM Pulse Gun Ballistic Gun Light Assault Rifle Ballistic Cannon Flak Cannon Launcher Rocket Launcher Build | -11 -10 -9 -9 -8 ------- Run | Yrd Mat Mat Min Mat Slots Evolved 4 | . . 2 . 2 Power 1 | . . 1 . . Propulsion 2 | . . 1 . 1 Utility 1 | . . . . 1 Weapon . | . . . . . Parts Attached 59 | 6 6 12 5 30 Power 10 | 1 1 3 1 4 Engine 8 | 1 . 3 1 3 Core 2 | . 1 . . 1 Reactor . | . . . . . Propulsion 23 | 2 2 3 . 16 Treads 5 | . 2 3 . . Leg 18 | 2 . . . 16 Wheel . | . . . . . Hover . | . . . . . Flight . | . . . . . Utility 8 | 1 . 2 2 3 Device 3 | . . 1 2 . Storage 3 | 1 . 1 . 1 Processor . | . . . . . Hackware 2 | . . . . 2 Protection . | . . . . . Artifact . | . . . . . Weapon 18 | 2 3 4 2 7 Energy Gun 2 | . 1 . . 1 Energy Cannon . | . . . . . Ballistic Gun 11 | 2 1 3 1 4 Ballistic Cannon 2 | . . 1 . 1 Launcher 3 | . 1 . 1 1 Special Weapon . | . . . . . Impact Weapon . | . . . . . Slashing Weapon . | . . . . . Piercing Weapon . | . . . . . Special Melee Weapon . | . . . . . Unidentified Prototypes 2 | . . . 2 . Parts Lost 23 | . 1 1 1 20 Power 9 | . 1 1 1 6 Propulsion 8 | . . . . 8 Utility 2 | . . . . 2 Weapon 4 | . . . . 4 Highest Loss Streak 7 | . 1 1 1 7 To Critical Strikes . | . . . . . Average Slot Usage (%) 91 | . 84 92 99 83 Engine 17 | . 5 21 21 12 Core 1 | . 8 . . 2 Treads 19 | . 7 26 33 2 Leg 10 | . 20 . . 30 Device 7 | . . 10 11 2 Storage 10 | . 14 11 11 9 Hackware 1 | . . . . 6 Energy Gun 1 | . 10 . . 1 Ballistic Gun 12 | . 16 10 11 12 Ballistic Cannon 5 | . . 10 3 1 Launcher 2 | . 1 . 7 1 Peak Build Rating 29 | 6 8 17 25 29 Average Rating 16 | 4 7 14 22 20 On Entrance 10 | . 6 5 17 23 Naked Turns . | . . . . . Heaviest Build 68 | 12 15 30 35 68 Greatest Support 60 | 20 40 60 60 60 Greatest Overweight (x) 6 | . . . . 6 Average Overweight (x) . | . . . . . Largest Inventory Capacity 20 | 8 8 10 10 20 Average Capacity 10 | 7 8 9 10 15 Most Carried 11 | 4 6 10 10 11 Average Carried 7 | 2 4 5 8 9 Final Capacity 20 | 8 8 10 10 20 Final Carried 10 | 4 4 9 10 9 Class Distribution -------------------- 54% | Mutant 45% | Scavenger-Mutant Dominant Class ---------------- Mutant | -10/Materials Mutant | -9/Materials Scavenger-Mutant | -9/Mines Scavenger-Mutant | -8/Materials Resources | -11 -10 -9 -9 -8 ----------- Run | Yrd Mat Mat Min Mat Matter Collected 1725 | 208 154 391 277 695 Remotely . | . . . . . Salvage Created 1788 | . 181 511 151 945 Parts 86 | . 11 30 5 40 Haulers Intercepted . | . . . . . Recyclers Shooed . | . . . . . Parts Field Recycled . | . . . . . Retrieved Matter . | . . . . . Parts Self-Destructed . | . . . . . Prevented . | . . . . . Kills | -11 -10 -9 -9 -8 ------- Run | Yrd Mat Mat Min Mat Combat Hostiles Destroyed 50 | . 7 13 8 22 Guns 12 | . . 2 2 8 Cannons 18 | . . 11 1 6 AOE 20 | . 7 . 5 8 Classes Destroyed 11 | . 3 5 2 1 Worker 2 | . . 1 . 1 Builder 1 | . . 1 . . Recycler 3 | . . 2 1 . Watcher 4 | . 1 1 . 2 Swarmer 6 | . 3 3 . . Grunt 28 | . 4 5 1 18 Brawler 1 | . . . 1 . Duelist 3 | . . 1 . 2 Sentry 5 | . . 4 . 1 Heavy 1 | . . . . 1 Assembled 6 | . . . 6 . Best Kill Streak 6 | . 3 6 6 4 Combat Bots Only 5 | . 3 3 5 3 Max Kills in Single Turn 3 | . 2 1 3 3 Gunslinging . | . . . . . Exploded 3 | . 2 . 2 3 Melee . | . . . . . Uniques/NPCs Destroyed . | . . . . . Combat | -11 -10 -9 -9 -8 -------- Run | Yrd Mat Mat Min Mat Hostile Shots Fired 272 | . 41 61 16 154 Missed 76 | . 10 21 6 39 Damage Taken 3350 | . 425 448 110 2367 Core 844 | . 116 90 24 614 Absorbed by Shields . | . . . . . Core Remaining (%) 74 | 100 53 . 71 . Volleys Fired 157 | . 22 44 14 77 Largest 2 | . 2 2 2 2 Hottest 70 | . 70 67 67 67 Shots Fired 304 | . 44 88 27 145 Gun 208 | . 40 44 13 111 Cannon 79 | . . 44 9 26 Launcher 17 | . 4 . 5 8 Special . | . . . . . Kinetic 269 | . 24 88 22 135 Thermal . | . . . . . Explosive 17 | . 4 . 5 8 Electromagnetic 18 | . 16 . . 2 Robot Hit Streak 11 | . 4 11 7 10 Robot Miss Streak 8 | . 5 7 8 5 Penetration Max . | . . . . . Secondary Targets . | . . . . . Shots Hit Robots 213 | . 18 64 15 116 Core Hits 159 | . 14 53 19 73 Critical Kills . | . . . . . Critical Parts Destroyed 2 | . 1 . . 1 Critical Strikes 2 | . 1 . . 1 Destroy 2 | . 1 . . 1 Melee Attacks . | . . . . . Impact . | . . . . . Slashing . | . . . . . Piercing . | . . . . . Sneak Attacks . | . . . . . Combat Hostiles . | . . . . . Follow-up Attacks . | . . . . . Damage Inflicted 4934 | . 632 1020 618 2664 Guns 1794 | . 215 230 75 1274 Cannons 1349 | . . 788 125 436 Explosions 1785 | . 417 . 418 950 Melee . | . . . . . Ramming 6 | . . 2 . 4 Kinetic 2968 | . 67 1018 200 1683 Thermal 431 | . 96 . . 335 Explosive 1354 | . 321 . 418 615 Electromagnetic 175 | . 148 . . 27 Impact . | . . . . . Slashing . | . . . . . Piercing . | . . . . . Highest Corruption 1 | . . 1 1 . Average Corruption 1 | . . 1 1 . Corruption Purged . | . . . . . Corruption Blocked . | . . . . . Effects 9 | . . . 9 . Matter Fused 2 | . . . 2 . Energy Discharges 2 | . . . 2 . Data Loss (minor) 4 | . . . 4 . Data Loss (major) 1 | . . . 1 . Overload Shots . | . . . . . Overflow Damage 107 | . . 1 8 98 Projectiles 1 | . . 1 . . Explosions 106 | . . . 8 98 Melee . | . . . . . Knockbacks 34 | . . 14 3 17 Impact . | . . . . . Kinetic 33 | . . 13 3 17 Secondary 1 | . . 1 . . Self-Inflicted Damage 320 | . 34 . . 286 Shots 6 | . 2 . . 4 Rammed 1 | . . 1 . . Targets Rammed 2 | . . 1 . 1 Kicked 1 | . . . . 1 Crushed . | . . . . . Highest Temperature 237 | . 75 116 70 237 Average Temperature 47 | . 23 46 29 60 Received Heat Transfer 1455 | . 213 165 42 1035 Siege Activations . | . . . . . Robots Corrupted . | . . . . . Combat Hostiles . | . . . . . Parts Fried . | . . . . . Impact Corruptions . | . . . . . Robots Melted . | . . . . . Combat Hostiles . | . . . . . Parts Melted . | . . . . . Heat Transferred 300 | . 50 . . 250 Parts Sabotaged . | . . . . . Parts Stolen . | . . . . . Parts Stripped . | . . . . . Power Chain Reactions 2 | . 1 . . 1 Alert | -11 -10 -9 -9 -8 ------- Run | Yrd Mat Mat Min Mat Peak Influence 424 | . 267 300 97 424 Initial 29 | . . 29 24 . Average 115 | . 97 125 26 198 Maximum Alert Level 2 | . 1 1 . 2 Low Security (%) 73 | 100 83 74 100 40 Level 1 25 | . 16 25 . 54 Level 2 1 | . . . . 5 Level 3 . | . . . . . Level 4 . | . . . . . Level 5 . | . . . . . High Security . | . . . . . Max Security . | . . . . . Squads Dispatched 6 | . 1 3 . 2 Investigation 4 | . . 3 . 1 Extermination . | . . . . . Reinforcement 2 | . 1 . . 1 Assault . | . . . . . Garrison . | . . . . . Intercept . | . . . . . Searches Triggered . | . . . . . Construction Impeded . | . . . . . Haulers Reinforced . | . . . . . Active Scanning Responses . | . . . . . Cargo Convoy Interrupts . | . . . . . Stealth | -11 -10 -9 -9 -8 --------- Run | Yrd Mat Mat Min Mat Distress Signals 5 | . 1 2 . 2 Communications Jammed . | . . . . . Distress Signals . | . . . . . Times Spotted 75 | . 16 21 6 32 Peak Tracking Total 4 | . 3 4 3 4 Tactical Retreats 3 | . . . . 3 Traps | -11 -10 -9 -9 -8 ------- Run | Yrd Mat Mat Min Mat Traps Triggered 1 | . . 1 . . Indirectly . | . . . . . Trap Hack Attempts . | . . . . . Triggered . | . . . . . Disarmed . | . . . . . Reprogrammed . | . . . . . Reused . | . . . . . Traps Extracted . | . . . . . Installed . | . . . . . Triggered . | . . . . . Machines | -11 -10 -9 -9 -8 ---------- Run | Yrd Mat Mat Min Mat Machines Disabled 5 | . . . . 5 Max in Single Turn 2 | . . . . 2 Machines Repaired . | . . . . . Machines Dismantled . | . . . . . Machines Sabotaged . | . . . . . Overloaded Fab Kills . | . . . . . Hacking | -11 -10 -9 -9 -8 --------- Run | Yrd Mat Mat Min Mat Machines Accessed 9 | . 2 6 . 1 Terminals 6 | . 2 3 . 1 Fabricators . | . . . . . Repair Stations 1 | . . 1 . . Recycling Units . | . . . . . Scanalyzers 2 | . . 2 . . Garrison Access . | . . . . . Total Hacks 34 | . 7 18 . 9 Successful 15 | . 3 8 . 4 Failed 18 | . 4 10 . 4 Catastrophic 1 | . 1 . . . Database Lockouts 1 | . . . . 1 Manual . | . . . . . Terminals 22 | . 7 6 . 9 Fabricators . | . . . . . Repair Stations 4 | . . 4 . . Recycling Units . | . . . . . Scanalyzers 8 | . . 8 . . Garrison Access . | . . . . . Terminal Hacks 11 | . 3 4 . 4 Record 4 | . 1 1 . 2 Reinforcement Status 3 | . . 2 . 1 Recall Investigation 1 | . 1 . . . Recall Reinforcements 2 | . 1 1 . . Zone Layout 1 | . . . . 1 Fabricator Hacks . | . . . . . Repair Station Hacks 1 | . . 1 . . Scan Component 1 | . . 1 . . Recycling Unit Hacks . | . . . . . Scanalyzer 3 | . . 3 . . Insert Component 1 | . . 1 . . Analyze 2 | . . 2 . . Garrison Access Hacks . | . . . . . Unauthorized Hacks . | . . . . . Terminals . | . . . . . Fabricators . | . . . . . Repair Stations . | . . . . . Recycling Units . | . . . . . Scanalyzers . | . . . . . Garrison Access . | . . . . . Data Cores Recovered . | . . . . . Used . | . . . . . Hacking Detections 8 | . 2 5 . 1 Full Trace Events 5 | . 1 3 . 1 Feedback Events 1 | . . 1 . . Corruption 1 | . . 1 . . Feedback Blocked . | . . . . . Robot Schematics Acquired . | . . . . . Robots Built . | . . . . . Authchips . | . . . . . Time . | . . . . . Total Robot Build Rating . | . . . . . Part Schematics Acquired 1 | . . 1 . . Parts Built . | . . . . . Authchips . | . . . . . Time . | . . . . . Total Part Build Rating . | . . . . . Parts Repaired . | . . . . . Time . | . . . . . Parts Recycled . | . . . . . Recycled Matter . | . . . . . Retrieved Matter . | . . . . . Retrieved Components . | . . . . . Parts Scanalyzed 1 | . . 1 . . Part Schematics Acquired 1 | . . 1 . . Parts Damaged . | . . . . . Bothacking | -11 -10 -9 -9 -8 ------------ Run | Yrd Mat Mat Min Mat Used RIF Installer . | . . . . . Robots Hacked . | . . . . . Non-combat . | . . . . . Combat . | . . . . . Robot Hacks Applied . | . . . . . Relay Couplers Released . | . . . . . Fabnet Peak Effective % . | . . . . . Robots Rewired . | . . . . . Allies Hacked . | . . . . . Hacks Repelled . | . . . . . Allies | -11 -10 -9 -9 -8 -------- Run | Yrd Mat Mat Min Mat Total Allies . | . . . . . Largest Group . | . . . . . Highest-Rated Group . | . . . . . Highest-Rated Ally . | . . . . . Total Orders . | . . . . . Ally Attacks . | . . . . . Total Damage . | . . . . . Kills . | . . . . . Allies Corrupted . | . . . . . Allies Melted . | . . . . . Intel | -11 -10 -9 -9 -8 ------- Run | Yrd Mat Mat Min Mat Robot Analysis Total . | . . . . . Derelict Logs Recovered 1 | . . . 1 . Drone Launches . | . . . . . Drone Recoveries . | . . . . . Exploration | -11 -10 -9 -9 -8 ------------- Run | Yrd Mat Mat Min Mat Turns Passed 4484 | 73 543 1751 1024 1093 Spaces Moved 2056 | 55 317 604 597 483 Core 12 | 12 . . . . Treads 1319 | . 75 604 597 43 Legs 725 | 43 242 . . 440 Wheels . | . . . . . Hover . | . . . . . Flight . | . . . . . Fastest Speed 50 | 50 120 160 160 120 Average Speed 154 | 104 129 160 160 161 Slowest Speed 540 | 120 160 160 160 540 Overloaded Moves . | . . . . . Propulsion Burnouts . | . . . . . Robots Hopped . | . . . . . Cave-ins Triggered . | . . . . . Exploration Rate (%) 42 | 4 53 36 94 27 Regions Visited 4 Branch Regions 1 Pre-discovered Areas . | . . . . . Known Exits Taken 1 | . . . 1 . Unknown Exits Taken 3 | 1 1 1 . . Scrap Searched 1 | . . . 1 . Spaces Dug . | . . . . . Terrain Destroyed 166 | . 32 . 38 96 Melee . | . . . . . Projectile . | . . . . . AOE 166 | . 32 . 38 96 Terrain Rammed . | . . . . . Walls Destroyed . | . . . . . Machines Disabled . | . . . . . Actions | -11 -10 -9 -9 -8 --------- Run | Yrd Mat Mat Min Mat Total 3089 | 70 411 1309 640 659 Wait 733 | . 59 627 16 31 Move 2052 | 54 316 603 596 483 Hop . | . . . . . Pick Up 61 | 10 4 15 5 27 Fast Attach . | . . . . . Attach 49 | 6 3 9 4 27 Detach 4 | . . 2 1 1 Swap 10 | . 3 3 1 3 Drop 21 | . 4 5 3 9 Fire 157 | . 22 44 14 77 Melee . | . . . . . Ram . | . . . . . Kick 1 | . . . . 1 Crush 1 | . . 1 . . Escape Stasis . | . . . . . Rewire . | . . . . . Trap . | . . . . . Miscellaneous . | . . . . . Route ------- -11/Scrapyard -10/Materials -9/Materials -9/Mines (discovered 2 exits: *Mat x2) -8/Materials (discovered 1 exit: [*Fac]) History --------- Turn | Location | Event 4 | -11/Scrapyard | Discovered new exit (range 15) 74 | -11/Scrapyard | Entered Materials 311 | -10/Materials | Build established: Mutant 507 | -10/Materials | Discovered new exit (range 16) 617 | -10/Materials | Entered another Materials area 617 | -9/Materials | Evolved 2 slots: Power x1, Propulsion x1 2303 | -9/Materials | Discovered new exit (range 9) 2368 | -9/Materials | Entered Mines 2614 | -9/Mines | Found a damaged Exp. Sensor Array with a note attached 2617 | -9/Mines | Found Prototype Device 2619 | -9/Mines | Identified Exp. Sensor Array 2628 | -9/Mines | Assembled infested the area 2640 | -9/Mines | Build established: Scavenger-Mutant 2997 | -9/Mines | Joined a pair of Derelicts in attacking an 0b10 outpost 3053 | -9/Mines | Discovered new exit (range 7) 3354 | -9/Mines | Identified exit to Materials 3392 | -9/Mines | Entered Materials 3392 | -8/Materials | Evolved 2 slots: Propulsion x1, Utility x1 3695 | -8/Materials | Lost 4 parts (1p2n1w) 3712 | -8/Materials | Core integrity fell below 50% 3765 | -8/Materials | Lost 4 parts (2n1u1w) 4036 | -8/Materials | Lost 7 parts (2p3n1u1w) 4325 | -8/Materials | Central database locked down 4353 | -8/Materials | Core integrity fell below 20% 4371 | -8/Materials | Discovered new exit (range 13) 4485 | -8/Materials | Destroyed self via exploding Fusion Modulator Last Messages --------------- 04387_ Critical hit (Burn: +37). 04389_ Aluminum Leg destroyed. 04390_ G-47 Trooper destroyed. 04400_ Critical hit (Burn: +37). 04401_ G-47 Trooper knocked back. 04404_ G-47 Trooper destroyed. 04409_ Acquired Aluminum Leg. 04410_ Acquired 42 matter. 04413_ Dropped Imp. Aluminum Leg. 04424_ Acquired 13 matter. 04426_ Acquired 38 matter. 04458_ U-05 Engineer works on Processing Tank. 04471_ Lgt. Ion Engine destroyed. 04475_ Imp. Assault Rifle destroyed. 04481_ Critical hit (Burn: +37). 04483_ G-47 Trooper knocked back. 04485_ Fusion Modulator explodes. 04485_ Destroyed Lgt. Angular Momentum Engine. 04485_ G-50 Soldier destroyed. 04485_ Destroyed Aluminum Leg. Map ----- +----------------------------------------------------+ | ????????????????????????????# # #????# # | | ???????????????#########????# """ """ # ###### # | | ?????????? + + # """ """ # # | | ?????????? ##### # # """ """ + # | | ?????????? #???# ###### # # | | ?????????? #???# + #########+## | | ?????????? #???# ######### ! #??# | | ?????????? #???# #?# # #??# | | ??? #####+######### #?# ###########??# """"" | | ?? ! #?# #????????????# """"" | | ?? ### #????????????# """"" | | ?? [ ^ ## #????????????# | | ?? ## #????????????# ] | | ?? ^ ## #?????################ | | ?? ####+###?????# """""????????? | | ???### ^ ## #?????# """""????????? | | ?????###### "" ####### """""????????? | | ??????????# " T [ + ????????? | | ??????????# % = ###=### ????????? | | ??????????# ### / #?# #?# ????????? | | ??????????# ########### #?# ????????? | | ??????????+ # # #?# ????????? | | ??????????# # ! # #######+######???? | | ??????????# # / # = #???? | | ??????????### ##### # = ] + < #???? | | ??????????#?# #???# #g% @ # ^ #???? | | ??????????#?# #???# # """ #########+######???? | | ??????????###+##### + """ #??# ????????? | | ?????????? ### """ #??# ????????? | | ?????????? #?#####;#####??# "????????? | | ?????????? #??????????????# "????????? | | ?????????? #??????????????# "????????? | | ??????????#########??????????????########????????? | | | | | | | | | | | | | | | | | | | | | | | | | | | | | | | | | | | +----------------------------------------------------+ Best States ------------- Heat Dissipation 31 Energy Generation 25 Energy Capacity 470 Matter Stores 300 Matter Capacity 300 Sight Range 16 Robot Scan Range 20 Terrain Scan Range 16 Terrain Scan Density 10 Evasion (%) 55 Recoil Reduction 3 Offensive Hacking 10 Defensive Hacking 10 Item Schematics ----------------- Imp. Assault Rifle | -9/Materials | Scanalyzed Robot Schematics ------------------ None Fabricated ------------ Nothing Alien Tech Used ----------------- None Achievements -------------- I Survived The Infestation Challenges ------------ None Game ------ Seed LegPersonalPod Manual? 0 Play Time 00:37:44 Cumulative 15.7 hours Start 2024.09.20 @ 09:30:18 End 2024.09.20 @ 10:06:37 Sessions 1 Manual Loads 0 Difficulty Rogue Special Mode None Game No. 34 Rogue 29 Adventurer 5 Explorer 0 Win Type - Total 0 Types 0/0/0/0/0/0/0/0/0 Lore% 8 Gallery% 13 Achievement% 14 Wizard Run 0 Options --------- Layout 0 ASCII 0 Keyboard 0 Movement Numpad Keybinds 0 Fullscreen 1 Font 18/SmallcapsGlow Map View 76x50 Zoom Use 0% Tactical HUD 1 Map Filters NONE Filters NONE Steam 1 RUN: 6eb33389-3885-42d0-9ccb-8c7b30ce2859